[Event "GER-ch Youth-U12 2024"]
[Site "Willingen"]
[Date "2024.05.23"]
[Round "7"]
[White "Rodriguez Klasen, Ennio"]
[Black "Vartanian, Roman"]
[Result "1-0"]
[ECO "B55"]
[WhiteElo "1802"]
[BlackElo "1797"]
[Annotator "NA RC"]
[PlyCount "129"]
[EventDate "2022.06.05"]
[EventType "swiss"]
[EventRounds "9"]
[EventCountry "GER"]
[SourceTitle "playchess.com"]
[Source "ChessBase"]
[SourceQuality "1"]
[TimeControl "40/4500+30:900+30"]

1. e4 {[%emt 0:00:00]} c5 {[%emt 0:00:00]} 2. Nf3 {[%emt 0:00:00]} d6 {[%emt 0:00:00]} 3. d4 {[%emt 0:00:00]} cxd4 {[%emt 0:00:00]} 4. Nxd4 {[%emt 0:00:00]} Nf6 {[%emt 0:00:00]} 5. f3 {[%emt 0:00:00]} e5 {[%emt 0:00:00]} 6. Nb3 {[%emt 0:00:00]} Be6 {[%emt 0:00:00]} 7. c4 {[%emt 0:00:00]} Qc7 {[%emt 0:00:00]} 8. Bg5 {[%emt 0:02:29]} Nbd7 {[%emt 0:00:00]} 9. Nc3 {[%emt 0:06:19]} h6 {[%emt 0:14:18]} 10. Be3 {[%emt 0:08:50]} Bxc4 {[%emt 0:07:54]} 11. Rc1 {[%emt 0:05:03]} Bxb3 {[%emt 0:01:04]} 12. Qxb3 {[%emt 0:02:36]} Qa5 {[%emt 0:16:36]} 13. Bc4 {[%emt 0:06:01]} d5 {[%emt 0:01:08]} 14. Bxd5 {[%emt 0:01:05]} Nxd5 {[%emt 0:00:11]} 15. Qxd5 {[%emt 0:00:45]} Qxd5 {[%emt 0:00:13]} 16. Nxd5 {[%emt 0:00:17]} Kd8 {[%emt 0:03:03]} 17. Ke2 {[%emt 0:01:53]} b6 {[%emt 0:01:52]} 18. Rhd1 {[%emt 0:06:35]} Bc5 {[%emt 0:09:22]} 19. Bxc5 {[%emt 0:12:14]} bxc5 {[%emt 0:00:11]} 20. b4 {[%emt 0:00:54]} Rc8 {[%emt 0:03:41]} 21. bxc5 {[%emt 0:04:27]} Rxc5 {[%emt 0:00:15]} 22. Rxc5 {[%emt 0:04:50]} Nxc5 {[%emt 0:00:05]} 23. Rc1 {[%emt 0:06:23]} Ne6 {[%emt 0:00:27]} 24. Ke3 {[%emt 0:03:16]} Kd7 {[%emt 0:00:29]} 25. Rb1 {[%emt 0:00:56]} Nc5 {[%emt 0:01:43]} 26. Rb5 {[%emt 0:01:26]} Kc6 {[%emt 0:02:11]} 27. Rb4 {[%emt 0:01:06]} Re8 {[%emt 0:04:16]} 28. a3 {[%emt 0:01:56]} f5 {[%emt 0:00:44]} 29. Rb2 {[%emt 0:03:13]} g6 {[%emt 0:04:24]} 30. Nb4+ {[%emt 0:01:40]} Kd6 {[%emt 0:01:39]} 31. Rd2+ {[%emt 0:00:58]} Kc7 {[%emt 0:02:00]} 32. Rd5 {[%emt 0:01:13]} f4+ {[%emt 0:00:26]} 33. Kd2 {[%emt 0:00:56]} Nb3+ {[%emt 0:02:17]} 34. Kc3 {[%emt 0:00:08]} Nd4 {[%emt 0:00:24]} 35. Nd3 {[%emt 0:00:46]} Nc6 {[%emt 0:00:13]} 36. Kc4 {[%emt 0:01:05]} g5 {[%emt 0:04:08]} 37. Rc5 {[%emt 0:01:42]} Kb6 {[%emt 0:01:38]} 38. Rb5+ {[%emt 0:00:29]} Kc7 {[%emt 0:00:16]} 39. Rc5 {[%emt 0:01:35]} Kb6 {[%emt 0:00:07]} 40. Rb5+ {[%emt 0:00:55]} Kc7 {[%emt 0:00:04]} 41. Nc5 {[%emt 0:00:00]} Kd6 {[%emt 0:00:00]} 42. Nb7+ {[%emt 0:00:00]} Kc7 {[%emt 0:00:00]} 43. Na5 {[%emt 0:05:20]} Nxa5+ {[%emt 0:00:00]} 44. Rxa5 {[%emt 0:00:02]} Kb6 {[%emt 0:00:15]} 45. Rb5+ {[%emt 0:01:39]} Kc6 {[%emt 0:00:07]} 46. Rd5 {[%emt 0:01:00]} Re7 {[%emt 0:05:49]} 47. a4 {[%emt 0:00:27]} Kb6 {[%emt 0:03:59]} 48. Kb4 {[%emt 0:01:31]} Re6 {[%emt 0:00:35]} 49. a5+ {[%emt 0:04:12]} Kc6 {[%emt 0:01:01]} 50. Rc5+ {[%emt 0:02:36]} Kb7 {[%emt 0:00:15]} 51. Kb5 {[%emt 0:01:55]} h5 {[%emt 0:02:12]} 52. h3 {[%emt 0:00:46]} a6+ {[%emt 0:02:24]} 53. Kc4 {[%emt 0:00:37]} g4 {[%emt 0:00:13]} 54. hxg4 {[%emt 0:01:08]} hxg4 {[%emt 0:00:04]} 55. Kd5 {[%emt 0:01:02]} gxf3 {[%emt 0:01:28]} 56. gxf3 {[%emt 0:01:03]} Rg6 {[%emt 0:00:35]} 57. Kxe5 {[%emt 0:00:37]} Rg5+ {[%emt 0:00:06]} 58. Kd4 {[%emt 0:00:24]} Rg3 {[%emt 0:00:11]} 59. Rc3 {[%emt 0:00:20]} Rg1 {[%emt 0:01:04]} 60. Ke5 {[%emt 0:01:07]} Rg5+ {[%emt 0:00:15]} 61. Kxf4 {[%emt 0:00:08]} Rxa5 {[%emt 0:00:06]} 62. e5 {[%emt 0:00:10]} Rd5 {[%emt 0:00:20]} 63. e6 {[%emt 0:00:41]} Rd6 {[%emt 0:00:39]} 64. e7 {[%emt 0:00:21]} Rf6+ {[%emt 0:00:19]} 65. Ke5 {[%emt 0:00:10]} 1-0

[Event "GER-ch Youth-U12 2024"]
[Site "Willingen"]
[Date "2024.05.23"]
[Round "7"]
[White "Fischermann, Simon"]
[Black "Shevchenko, Igor"]
[Result "1-0"]
[ECO "B12"]
[WhiteElo "1789"]
[BlackElo "1758"]
[Annotator "NA RC"]
[PlyCount "75"]
[EventDate "2022.06.05"]
[EventType "swiss"]
[EventRounds "9"]
[EventCountry "GER"]
[SourceTitle "playchess.com"]
[Source "ChessBase"]
[SourceQuality "1"]
[TimeControl "40/4500+30:900+30"]

1. e4 {[%emt 0:00:00]} c6 {[%emt 0:00:00]} 2. d4 {[%emt 0:00:00]} d5 {[%emt 0:00:00]} 3. e5 {[%emt 0:00:00]} Bf5 {[%emt 0:00:00]} 4. h4 {[%emt 0:00:00]} h5 {[%emt 0:00:00]} 5. Bd3 {[%emt 0:00:00]} Bxd3 {[%emt 0:00:00]} 6. Qxd3 {[%emt 0:00:00]} Qa5+ {[%emt 0:00:00]} 7. Bd2 {[%emt 0:00:00]} Qa6 {[%emt 0:00:00]} 8. Qxa6 {[%emt 0:00:00]} Nxa6 {[%emt 0:00:00]} 9. e6 {[%emt 0:00:00]} Nc7 {[%emt 0:00:00]} 10. exf7+ {[%emt 0:00:00]} Kxf7 {[%emt 0:00:00]} 11. Nf3 {[%emt 0:00:00]} Nf6 {[%emt 0:00:20]} 12. O-O {[%emt 0:05:56]} Ne4 {[%emt 0:21:11]} 13. Ne5+ {[%emt 0:03:57]} Kg8 {[%emt 0:03:13]} 14. Bg5 {[%emt 0:01:46]} Kh7 {[%emt 0:09:27]} 15. c3 {[%emt 0:02:53]} g6 {[%emt 0:09:35]} 16. f3 {[%emt 0:00:11]} Nxg5 {[%emt 0:00:09]} 17. hxg5 {[%emt 0:00:02]} Bg7 {[%emt 0:02:22]} 18. Re1 {[%emt 0:04:01]} Bxe5 {[%emt 0:03:21]} 19. Rxe5 {[%emt 0:00:27]} e6 {[%emt 0:00:48]} 20. Nd2 {[%emt 0:02:07]} Kg7 {[%emt 0:01:00]} 21. Kf2 {[%emt 0:00:53]} Kf7 {[%emt 0:01:05]} 22. Nf1 {[%emt 0:00:57]} Ke7 {[%emt 0:02:25]} 23. f4 {[%emt 0:00:45]} Kd6 {[%emt 0:01:15]} 24. Ne3 {[%emt 0:03:13]} Raf8 {[%emt 0:01:19]} 25. Kf3 {[%emt 0:01:18]} Ne8 {[%emt 0:02:41]} 26. b3 {[%emt 0:02:21]} Ng7 {[%emt 0:02:09]} 27. c4 {[%emt 0:00:31]} Rf7 {[%emt 0:02:00]} 28. Re1 {[%emt 0:08:56]} Rhf8 {[%emt 0:02:59]} 29. g3 {[%emt 0:00:30]} b6 {[%emt 0:07:41]} 30. Ng2 {[%emt 0:00:34]} Re8 {[%emt 0:05:19]} 31. Nh4 {[%emt 0:01:46]} Nf5 {[%emt 0:00:21]} 32. Nxf5+ {[%emt 0:00:31]} Rxf5 {[%emt 0:00:14]} 33. Rxf5 {[%emt 0:00:18]} gxf5 {[%emt 0:00:01]} 34. Kg2 {[%emt 0:00:21]} dxc4 {[%emt 0:00:37]} 35. bxc4 {[%emt 0:00:02]} b5 {[%emt 0:01:38]} 36. cxb5 {[%emt 0:00:44]} cxb5 {[%emt 0:00:04]} 37. Kh3 {[%emt 0:00:49]} h4 {[%emt 0:03:48]} 38. gxh4 {[%emt 0:00:10]} 1-0

[Event "GER-ch Youth-U12 2024"]
[Site "Willingen"]
[Date "2024.05.23"]
[Round "7"]
[White "Yozgyur, Ediz"]
[Black "Lee, Ho In"]
[Result "0-1"]
[ECO "B77"]
[WhiteElo "1789"]
[BlackElo "1668"]
[Annotator "NA RC"]
[PlyCount "118"]
[EventDate "2022.06.05"]
[EventType "swiss"]
[EventRounds "9"]
[EventCountry "GER"]
[SourceTitle "playchess.com"]
[Source "ChessBase"]
[SourceQuality "1"]
[TimeControl "40/4500+30:900+30"]

1. e4 {[%emt 0:00:00]} c5 {[%emt 0:00:00]} 2. Nf3 {[%emt 0:00:00]} Nc6 {[%emt 0:00:00]} 3. d4 {[%emt 0:00:00]} cxd4 {[%emt 0:00:00]} 4. Nxd4 {[%emt 0:00:00]} Nf6 {[%emt 0:00:00]} 5. Nc3 {[%emt 0:00:00]} d6 {[%emt 0:00:00]} 6. Bc4 {[%emt 0:00:00]} g6 {[%emt 0:00:00]} 7. f3 {[%emt 0:00:00]} Bg7 {[%emt 0:00:00]} 8. Be3 {[%emt 0:00:00]} O-O {[%emt 0:00:00]} 9. Qd2 {[%emt 0:00:22]} Nxd4 {[%emt 0:00:00]} 10. Bxd4 {[%emt 0:00:11]} Be6 {[%emt 0:00:00]} 11. Bxe6 {[%emt 0:02:34]} fxe6 {[%emt 0:00:00]} 12. h4 {[%emt 0:01:28]} Qa5 {[%emt 0:00:00]} 13. O-O-O {[%emt 0:03:33]} Rfc8 {[%emt 0:04:29]} 14. g4 {[%emt 0:02:06]} Nd7 {[%emt 0:00:45]} 15. Bxg7 {[%emt 0:01:33]} Kxg7 {[%emt 0:00:08]} 16. h5 {[%emt 0:00:23]} g5 {[%emt 0:00:19]} 17. f4 {[%emt 0:01:20]} gxf4 {[%emt 0:07:43]} 18. g5 {[%emt 0:03:10]} Ne5 {[%emt 0:11:31]} 19. g6 {[%emt 0:04:14]} h6 {[%emt 0:14:59]} 20. Qxf4 {[%emt 0:03:47]} Rf8 {[%emt 0:00:08]} 21. Qh4 {[%emt 0:01:04]} Rf6 {[%emt 0:00:52]} 22. Rhf1 {[%emt 0:00:55]} Raf8 {[%emt 0:00:16]} 23. Rxf6 {[%emt 0:03:20]} Rxf6 {[%emt 0:00:11]} 24. Qh3 {[%emt 0:01:48]} Qa6 {[%emt 0:04:39]} 25. Qe3 {[%emt 0:08:05]} Qa5 {[%emt 0:05:05]} 26. Qe2 {[%emt 0:02:14]} a6 {[%emt 0:02:58]} 27. Rf1 {[%emt 0:00:56]} Nd7 {[%emt 0:00:16]} 28. a3 {[%emt 0:04:15]} Qg5+ {[%emt 0:06:38]} 29. Kb1 {[%emt 0:00:28]} Rxf1+ {[%emt 0:22:28]} 30. Qxf1 {[%emt 0:00:05]} Ne5 {[%emt 0:05:22]} 31. Qh3 {[%emt 0:01:26]} Qg4 {[%emt 0:00:23]} 32. Qxg4 {[%emt 0:01:17]} Nxg4 {[%emt 0:00:05]} 33. Ne2 {[%emt 0:00:06]} Kf6 {[%emt 0:00:09]} 34. Ng3 {[%emt 0:02:22]} Ke5 {[%emt 0:00:34]} 35. Nh1 {[%emt 0:01:20]} Nf6 {[%emt 0:00:26]} 36. Nf2 {[%emt 0:05:54]} Kf4 {[%emt 0:00:30]} 37. b4 {[%emt 0:01:23]} Nxh5 {[%emt 0:00:26]} 38. c4 {[%emt 0:00:28]} Kf3 {[%emt 0:00:55]} 39. Nd1 {[%emt 0:01:00]} Kxe4 {[%emt 0:00:09]} 40. b5 {[%emt 0:00:05]} Kd4 {[%emt 0:00:31]} 41. Nb2 {[%emt 0:15:44]} Kc3 {[%emt 0:15:55]} 42. bxa6 {[%emt 0:01:12]} bxa6 {[%emt 0:00:05]} 43. Na4+ {[%emt 0:00:06]} Kxc4 {[%emt 0:00:17]} 44. Nb6+ {[%emt 0:00:25]} Kb3 {[%emt 0:01:22]} 45. Nc8 {[%emt 0:00:07]} Ng7 {[%emt 0:00:07]} 46. Nxe7 {[%emt 0:00:51]} h5 {[%emt 0:00:09]} 47. Nc8 {[%emt 0:00:27]} d5 {[%emt 0:00:37]} 48. Nd6 {[%emt 0:00:10]} h4 {[%emt 0:00:42]} 49. Nf7 {[%emt 0:00:30]} h3 {[%emt 0:00:00]} 50. Kc1 {[%emt 0:00:08]} h2 {[%emt 0:00:00]} 51. Kd2 {[%emt 0:00:02]} h1=Q {[%emt 0:00:00]} 52. Ng5 {[%emt 0:00:10]} Qh6 {[%emt 0:00:04]} 53. Kd3 {[%emt 0:00:05]} Qxg5 {[%emt 0:00:07]} 54. a4 {[%emt 0:00:04]} Qe5 {[%emt 0:00:24]} 55. a5 {[%emt 0:00:12]} Qe4+ {[%emt 0:00:05]} 56. Kd2 {[%emt 0:00:03]} Kb2 {[%emt 0:00:27]} 57. Kd1 {[%emt 0:00:08]} Qg2 {[%emt 0:00:06]} 58. Ke1 {[%emt 0:00:08]} Kc3 {[%emt 0:00:05]} 59. Kd1 {[%emt 0:00:08]} Qd2# {[%emt 0:00:04]} 0-1

[Event "GER-ch Youth-U12 2024"]
[Site "Willingen"]
[Date "2024.05.23"]
[Round "7"]
[White "Noll, Raphael"]
[Black "Rinke, Alexander"]
[Result "1-0"]
[ECO "B15"]
[WhiteElo "1775"]
[BlackElo "1596"]
[Annotator "NA RC"]
[PlyCount "103"]
[EventDate "2022.06.05"]
[EventType "swiss"]
[EventRounds "9"]
[EventCountry "GER"]
[SourceTitle "playchess.com"]
[Source "ChessBase"]
[SourceQuality "1"]
[TimeControl "40/4500+30:900+30"]

1. e4 {[%emt 0:00:00]} c6 {[%emt 0:00:00]} 2. d4 {[%emt 0:00:00]} d5 {[%emt 0:00:00]} 3. Nd2 {[%emt 0:00:00]} dxe4 {[%emt 0:00:00]} 4. Nxe4 {[%emt 0:00:00]} Nf6 {[%emt 0:00:00]} 5. Nxf6+ {[%emt 0:00:00]} exf6 {[%emt 0:00:00]} 6. c3 {[%emt 0:00:00]} Bd6 {[%emt 0:00:00]} 7. Bd3 {[%emt 0:00:00]} O-O {[%emt 0:00:00]} 8. Ne2 {[%emt 0:00:00]} Re8 {[%emt 0:00:00]} 9. O-O {[%emt 0:00:00]} Nd7 {[%emt 0:00:00]} 10. Qc2 {[%emt 0:00:00]} h6 {[%emt 0:00:00]} 11. Be3 {[%emt 0:00:00]} Nf8 {[%emt 0:00:00]} 12. Rfe1 {[%emt 0:00:00]} Qc7 {[%emt 0:02:00]} 13. h3 {[%emt 0:02:28]} Be6 {[%emt 0:05:28]} 14. c4 {[%emt 0:06:48]} Rac8 {[%emt 0:03:55]} 15. Nc3 {[%emt 0:03:32]} a6 {[%emt 0:03:37]} 16. Ne4 {[%emt 0:07:41]} Bf4 {[%emt 0:03:47]} 17. c5 {[%emt 0:08:51]} Bd5 {[%emt 0:05:51]} 18. Bxf4 {[%emt 0:10:31]} Qxf4 {[%emt 0:00:09]} 19. Nd6 {[%emt 0:00:16]} Rxe1+ {[%emt 0:00:10]} 20. Rxe1 {[%emt 0:00:10]} Rc7 {[%emt 0:02:22]} 21. Re8 {[%emt 0:04:07]} g6 {[%emt 0:01:34]} 22. Bxg6 {[%emt 0:04:58]} Qg5 {[%emt 0:04:20]} 23. Be4 {[%emt 0:04:34]} Bxe4 {[%emt 0:00:56]} 24. Qxe4 {[%emt 0:00:33]} Qg6 {[%emt 0:01:41]} 25. Nf5 {[%emt 0:05:38]} Qg5 {[%emt 0:02:23]} 26. Qg4 {[%emt 0:02:28]} Rd7 {[%emt 0:00:52]} 27. Qxg5+ {[%emt 0:04:26]} hxg5 {[%emt 0:00:43]} 28. Re7 {[%emt 0:04:40]} Rxe7 {[%emt 0:00:24]} 29. Nxe7+ {[%emt 0:00:05]} Kg7 {[%emt 0:00:22]} 30. d5 {[%emt 0:01:21]} cxd5 {[%emt 0:00:15]} 31. Nxd5 {[%emt 0:00:22]} Ne6 {[%emt 0:00:21]} 32. b4 {[%emt 0:00:25]} f5 {[%emt 0:03:44]} 33. Kf1 {[%emt 0:02:15]} Kg6 {[%emt 0:05:03]} 34. g4 {[%emt 0:02:08]} fxg4 {[%emt 0:03:18]} 35. hxg4 {[%emt 0:00:10]} Nd4 {[%emt 0:01:46]} 36. Ke1 {[%emt 0:02:38]} f5 {[%emt 0:11:02]} 37. gxf5+ {[%emt 0:01:48]} Kxf5 {[%emt 0:02:35]} 38. Kd2 {[%emt 0:05:24]} Ke4 {[%emt 0:01:51]} 39. Nf6+ {[%emt 0:02:24]} Kf3 {[%emt 0:01:00]} 40. Kd3 {[%emt 0:01:51]} Nc6 {[%emt 0:03:09]} 41. Kc4 {[%emt 0:16:46]} Kxf2 {[%emt 0:16:11]} 42. b5 {[%emt 0:00:24]} Nb8 {[%emt 0:04:13]} 43. Ne4+ {[%emt 0:00:00]} Ke3 {[%emt 0:00:00]} 44. Nxg5 {[%emt 0:00:00]} Kf4 {[%emt 0:00:00]} 45. Ne6+ {[%emt 0:00:00]} Ke5 {[%emt 0:00:00]} 46. Nd8 {[%emt 0:00:00]} b6 {[%emt 0:00:00]} 47. Nc6+ {[%emt 0:00:00]} Nxc6 {[%emt 0:00:00]} 48. bxc6 {[%emt 0:00:00]} b5+ {[%emt 0:00:00]} 49. Kb4 {[%emt 0:00:00]} Ke6 {[%emt 0:00:00]} 50. Ka5 {[%emt 0:00:00]} Ke7 {[%emt 0:00:00]} 51. Kxa6 {[%emt 0:00:00]} b4 {[%emt 0:00:00]} 52. Kb7 {[%emt 0:00:00]} 1-0

[Event "GER-ch Youth-U12 2024"]
[Site "Willingen"]
[Date "2024.05.23"]
[Round "7"]
[White "Zimmer, Tim"]
[Black "Vu Hoang Bach"]
[Result "1-0"]
[ECO "B01"]
[WhiteElo "1772"]
[BlackElo "1677"]
[Annotator "NA RC"]
[PlyCount "59"]
[EventDate "2022.06.05"]
[EventType "swiss"]
[EventRounds "9"]
[EventCountry "GER"]
[SourceTitle "playchess.com"]
[Source "ChessBase"]
[SourceQuality "1"]
[TimeControl "40/4500+30:900+30"]

1. e4 {[%emt 0:00:00]} d5 {[%emt 0:00:00]} 2. exd5 {[%emt 0:00:00]} Qxd5 {[%emt 0:00:00]} 3. Nc3 {[%emt 0:00:00]} Qd6 {[%emt 0:00:00]} 4. d4 {[%emt 0:00:00]} Nf6 {[%emt 0:00:00]} 5. Nf3 {[%emt 0:00:00]} Nc6 {[%emt 0:00:00]} 6. Nb5 {[%emt 0:00:00]} Qd8 {[%emt 0:00:00]} 7. c4 {[%emt 0:00:00]} a6 {[%emt 0:00:00]} 8. Nc3 {[%emt 0:00:00]} Bg4 {[%emt 0:00:00]} 9. d5 {[%emt 0:00:00]} Bxf3 {[%emt 0:00:00]} 10. Qxf3 {[%emt 0:00:00]} Nd4 {[%emt 0:00:00]} 11. Qd3 {[%emt 0:02:58]} e5 {[%emt 0:00:00]} 12. Be2 {[%emt 0:06:27]} Bb4 {[%emt 0:00:00]} 13. O-O {[%emt 0:06:00]} O-O {[%emt 0:00:00]} 14. Bg5 {[%emt 0:06:05]} Qd6 {[%emt 0:01:40]} 15. f4 {[%emt 0:10:06]} Bc5 {[%emt 0:04:08]} 16. Kh1 {[%emt 0:03:41]} e4 {[%emt 0:02:10]} 17. Qh3 {[%emt 0:06:45]} Rae8 {[%emt 0:01:21]} 18. a3 {[%emt 0:02:01]} a5 {[%emt 0:02:12]} 19. Rab1 {[%emt 0:01:27]} Nd7 {[%emt 0:04:31]} 20. f5 {[%emt 0:02:39]} Nxe2 {[%emt 0:05:26]} 21. Nxe2 {[%emt 0:00:16]} f6 {[%emt 0:01:16]} 22. Bd2 {[%emt 0:04:57]} a4 {[%emt 0:01:38]} 23. Nf4 {[%emt 0:01:15]} Rf7 {[%emt 0:01:17]} 24. Ne6 {[%emt 0:00:15]} Ne5 {[%emt 0:03:32]} 25. Bf4 {[%emt 0:08:39]} Ba7 {[%emt 0:08:34]} 26. Rbe1 {[%emt 0:00:00]} b5 {[%emt 0:00:26]} 27. Rxe4 {[%emt 0:01:44]} h6 {[%emt 0:04:37]} 28. Bxh6 {[%emt 0:06:20]} gxh6 {[%emt 0:00:19]} 29. Qxh6 {[%emt 0:01:41]} Ree7 {[%emt 0:00:56]} 30. Rh4 {[%emt 0:00:39]} 1-0

[Event "GER-ch Youth-U12 2024"]
[Site "Willingen"]
[Date "2024.05.23"]
[Round "7"]
[White "Fadeev, Justin Michael"]
[Black "Sheng, Ming"]
[Result "0-1"]
[ECO "B13"]
[WhiteElo "1762"]
[BlackElo "2031"]
[Annotator "RC"]
[PlyCount "94"]
[EventDate "2022.06.05"]
[EventType "swiss"]
[EventRounds "9"]
[EventCountry "GER"]
[SourceTitle "playchess.com"]
[Source "ChessBase"]
[SourceQuality "1"]
[TimeControl "40/4500+30:900+30"]

1. e4 {[%emt 0:00:00]} c6 {[%emt 0:00:00]} 2. d4 {[%emt 0:00:00]} d5 {[%emt 0:00:00]} 3. exd5 {[%emt 0:00:00]} cxd5 {[%emt 0:00:00]} 4. Bd3 {[%emt 0:00:00]} Nc6 {[%emt 0:00:00]} 5. c3 {[%emt 0:00:00]} Nf6 {[%emt 0:00:00]} 6. Bf4 {[%emt 0:00:00]} Bg4 {[%emt 0:00:00]} 7. Qb3 {[%emt 0:00:00]} Qc8 {[%emt 0:00:00]} 8. Nd2 {[%emt 0:00:00]} e6 {[%emt 0:00:00]} 9. Ngf3 {[%emt 0:00:00]} Be7 {[%emt 0:00:00]} 10. O-O {[%emt 0:00:00]} O-O {[%emt 0:00:00]} 11. Rae1 {[%emt 0:00:00]} Bh5 {[%emt 0:00:00]} 12. Ne5 {[%emt 0:00:00]} Nxe5 {[%emt 0:00:00]} 13. Bxe5 {[%emt 0:04:16]} Bg6 {[%emt 0:00:00]} 14. Bxg6 {[%emt 0:00:33]} hxg6 {[%emt 0:00:00]} 15. Qc2 {[%emt 0:08:20]} b5 {[%emt 0:00:00]} 16. Qd3 {[%emt 0:10:01]} b4 {[%emt 0:00:00]} 17. Bxf6 {[%emt 0:08:40]} gxf6 {[%emt 0:01:34]} 18. Re3 {[%emt 0:05:57]} bxc3 {[%emt 0:02:39]} 19. bxc3 {[%emt 0:00:31]} Qd7 {[%emt 0:03:10]} 20. Rfe1 {[%emt 0:01:54]} Kg7 {[%emt 0:03:47]} 21. h4 {[%emt 0:17:27]} Rh8 {[%emt 0:02:02]} 22. g3 {[%emt 0:02:50]} Rac8 {[%emt 0:03:23]} 23. Kg2 {[%emt 0:00:58]} Bd6 {[%emt 0:03:29]} 24. Nb3 {[%emt 0:06:29]} Qa4 {[%emt 0:05:27]} 25. R1e2 {[%emt 0:00:32]} Rc4 {[%emt 0:09:33]} 26. Qd2 {[%emt 0:10:28]} Qa6 {[%emt 0:05:41]} 27. Qd3 {[%emt 0:02:44]} Qc8 {[%emt 0:03:06]} 28. Na5 {[%emt 0:03:49]} Rc7 {[%emt 0:01:59]} 29. Rb2 {[%emt 0:01:31]} Rh5 {[%emt 0:06:33]} 30. Rb1 {[%emt 0:01:08]} Rh8 {[%emt 0:03:08]} 31. a4 {[%emt 0:01:22]} Rd8 {[%emt 0:03:42]} 32. Rb2 {[%emt 0:01:17]} e5 {[%emt 0:02:30]} 33. Rb3 {[%emt 0:00:31]} e4 {[%emt 0:01:07]} 34. Qb5 {[%emt 0:00:24]} f5 {[%emt 0:00:56]} 35. Nb7 {[%emt 0:00:22]} Rdd7 {[%emt 0:05:09]} 36. Nxd6 {[%emt 0:00:14]} Rxd6 {[%emt 0:00:02]} 37. Qe2 {[%emt 0:00:46]} Rc4 {[%emt 0:00:20]} 38. Rb4 {[%emt 0:00:39]} Rxc3 {[%emt 0:00:33]} 39. Qb2 {[%emt 0:00:42]} Rc2 {[%emt 0:00:41]} 40. Qb3 {[%emt 0:00:25]} f4 {[%emt 0:05:14]} 41. gxf4 {[%emt 0:00:00]} Rf6 {[%emt 0:00:00]} 42. Rb8 {[%emt 0:00:27]} Qg4+ {[%emt 0:00:00]} 43. Rg3 {[%emt 0:00:09]} Rxf2+ {[%emt 0:00:00]} 44. Kxf2 {[%emt 0:03:12]} Qxf4+ {[%emt 0:00:00]} 45. Ke2 {[%emt 0:02:30]} Qf1+ {[%emt 0:00:00]} 46. Kd2 {[%emt 0:00:29]} Rf2+ {[%emt 0:00:00]} 47. Kc3 {[%emt 0:00:11]} Qe1# {[%emt 0:00:00]} 0-1

[Event "GER-ch Youth-U12 2024"]
[Site "Willingen"]
[Date "2024.05.23"]
[Round "7"]
[White "Rau, Eduard"]
[Black "Peglau, Paul David"]
[Result "0-1"]
[ECO "B01"]
[WhiteElo "1756"]
[BlackElo "1806"]
[Annotator "NA RC"]
[PlyCount "94"]
[EventDate "2022.06.05"]
[EventType "swiss"]
[EventRounds "9"]
[EventCountry "GER"]
[SourceTitle "playchess.com"]
[Source "ChessBase"]
[SourceQuality "1"]
[TimeControl "40/4500+30:900+30"]

1. e4 {[%emt 0:00:00]} d5 {[%emt 0:00:00]} 2. exd5 {[%emt 0:00:00]} Qxd5 {[%emt 0:00:00]} 3. Nc3 {[%emt 0:00:00]} Qd6 {[%emt 0:00:00]} 4. d4 {[%emt 0:00:00]} Nf6 {[%emt 0:00:00]} 5. Bc4 {[%emt 0:00:00]} a6 {[%emt 0:00:00]} 6. Nf3 {[%emt 0:00:00]} Bg4 {[%emt 0:00:00]} 7. Be3 {[%emt 0:00:00]} e6 {[%emt 0:00:00]} 8. h3 {[%emt 0:00:00]} Bh5 {[%emt 0:00:00]} 9. Qe2 {[%emt 0:00:00]} Nbd7 {[%emt 0:00:00]} 10. Bb3 {[%emt 0:00:00]} O-O-O {[%emt 0:00:00]} 11. O-O-O {[%emt 0:00:00]} Nb6 {[%emt 0:00:00]} 12. Bg5 {[%emt 0:00:00]} Be7 {[%emt 0:00:00]} 13. Kb1 {[%emt 0:00:00]} Rhe8 {[%emt 0:10:36]} 14. Bh4 {[%emt 0:00:00]} Nbd5 {[%emt 0:05:20]} 15. Nxd5 {[%emt 0:01:38]} exd5 {[%emt 0:02:19]} 16. Rd3 {[%emt 0:07:41]} Ne4 {[%emt 0:06:27]} 17. Bxe7 {[%emt 0:02:19]} Rxe7 {[%emt 0:03:45]} 18. Re3 {[%emt 0:00:17]} f5 {[%emt 0:04:58]} 19. Qd3 {[%emt 0:03:05]} Bg6 {[%emt 0:11:15]} 20. Re2 {[%emt 0:03:39]} Rde8 {[%emt 0:05:01]} 21. Ne5 {[%emt 0:02:25]} c5 {[%emt 0:06:33]} 22. Nxg6 {[%emt 0:04:08]} Qxg6 {[%emt 0:03:47]} 23. Bxd5 {[%emt 0:08:10]} Nc3+ {[%emt 0:02:12]} 24. Qxc3 {[%emt 0:00:06]} Rxe2 {[%emt 0:00:06]} 25. Bf3 {[%emt 0:00:29]} R2e7 {[%emt 0:01:10]} 26. Rd1 {[%emt 0:01:10]} Qf6 {[%emt 0:06:31]} 27. Qxc5+ {[%emt 0:01:37]} Kb8 {[%emt 0:00:53]} 28. Qb4 {[%emt 0:00:32]} g5 {[%emt 0:01:53]} 29. d5 {[%emt 0:00:32]} Rd7 {[%emt 0:02:39]} 30. c4 {[%emt 0:02:14]} g4 {[%emt 0:01:39]} 31. c5 {[%emt 0:11:49]} gxf3 {[%emt 0:00:57]} 32. c6 {[%emt 0:00:04]} Rc7 {[%emt 0:00:46]} 33. Qf4 {[%emt 0:00:06]} bxc6 {[%emt 0:02:20]} 34. d6 {[%emt 0:00:19]} Rd7 {[%emt 0:00:46]} 35. Qb4+ {[%emt 0:00:05]} Rb7 {[%emt 0:01:01]} 36. d7 {[%emt 0:01:04]} Rd8 {[%emt 0:00:12]} 37. Qf4+ {[%emt 0:00:04]} Ka8 {[%emt 0:00:14]} 38. b3 {[%emt 0:00:17]} Rdxd7 {[%emt 0:02:52]} 39. Rxd7 {[%emt 0:00:07]} Rxd7 {[%emt 0:00:05]} 40. Qc4 {[%emt 0:00:01]} fxg2 {[%emt 0:02:35]} 41. Qxa6+ {[%emt 0:15:05]} Kb8 {[%emt 0:15:10]} 42. Qb6+ {[%emt 0:00:17]} Rb7 {[%emt 0:00:09]} 43. Qe3 {[%emt 0:00:23]} g1=Q+ {[%emt 0:00:07]} 44. Kc2 {[%emt 0:00:01]} Qd6 {[%emt 0:01:18]} 45. Qe8+ {[%emt 0:00:17]} Ka7 {[%emt 0:00:17]} 46. Qe3+ {[%emt 0:00:03]} c5 {[%emt 0:00:06]} 47. Qe2 {[%emt 0:00:08]} Rd7 {[%emt 0:00:29]} 0-1

[Event "GER-ch Youth-U12 2024"]
[Site "Willingen"]
[Date "2024.05.23"]
[Round "7"]
[White "Jahn, Gustav"]
[Black "Schmidt, Jossip"]
[Result "1-0"]
[ECO "B76"]
[WhiteElo "1755"]
[BlackElo "1603"]
[Annotator "NA RC"]
[PlyCount "43"]
[EventDate "2022.06.05"]
[EventType "swiss"]
[EventRounds "9"]
[EventCountry "GER"]
[SourceTitle "playchess.com"]
[Source "ChessBase"]
[SourceQuality "1"]
[TimeControl "40/4500+30:900+30"]

1. e4 {[%emt 0:00:00]} c5 {[%emt 0:00:00]} 2. Nf3 {[%emt 0:00:00]} d6 {[%emt 0:00:00]} 3. d4 {[%emt 0:00:00]} cxd4 {[%emt 0:00:00]} 4. Nxd4 {[%emt 0:00:00]} Nf6 {[%emt 0:00:00]} 5. Nc3 {[%emt 0:00:00]} g6 {[%emt 0:00:00]} 6. Be3 {[%emt 0:00:00]} Bg7 {[%emt 0:00:00]} 7. f3 {[%emt 0:00:00]} O-O {[%emt 0:00:00]} 8. Qd2 {[%emt 0:00:00]} Bd7 {[%emt 0:00:00]} 9. g4 {[%emt 0:00:00]} a6 {[%emt 0:00:00]} 10. h4 {[%emt 0:00:00]} h5 {[%emt 0:00:00]} 11. gxh5 {[%emt 0:00:00]} Nxh5 {[%emt 0:00:00]} 12. Bc4 {[%emt 0:00:00]} Qc7 {[%emt 0:00:17]} 13. Bb3 {[%emt 0:00:00]} Nc6 {[%emt 0:05:10]} 14. Nd5 {[%emt 0:00:00]} Qd8 {[%emt 0:01:57]} 15. O-O-O {[%emt 0:00:00]} b5 {[%emt 0:01:04]} 16. Rhg1 {[%emt 0:00:12]} Rb8 {[%emt 0:02:43]} 17. Nxc6 {[%emt 0:04:46]} Bxc6 {[%emt 0:00:35]} 18. Nb4 {[%emt 0:00:43]} Bb7 {[%emt 0:01:52]} 19. Rxg6 {[%emt 0:00:31]} a5 {[%emt 0:00:27]} 20. Qg2 {[%emt 0:01:13]} Kh7 {[%emt 0:01:05]} 21. Rg1 {[%emt 0:02:05]} Bxb2+ {[%emt 0:01:52]} 22. Kxb2 {[%emt 0:00:28]} 1-0